fUSD/lending_fUSD_20260601
["ID","MTS","AMOUNT","RATE_DAILY","PERIOD"]
[423681036,1780300246000,-500.0,0.000143,2]
[423681040,1780300246000,-500.0,0.000143,2]
[423681044,1780300246000,-500.0,0.000143,2]
[423681039,1780300246000,-500.0,0.000143,2]
[423681038,1780300246000,-500.0,0.000143,2]
[423681037,1780300246000,-500.0,0.000143,2]
[423681042,1780300246000,-500.0,0.000143,2]
[423681046,1780300246000,-500.0,0.000143,2]
[423681045,1780300246000,-500.0,0.000143,2]
[423681051,1780300246000,-150.0,0.00014305,2]
[423681047,1780300246000,-500.0,0.000143,2]
[423680978,1780300246000,-213.39396534,0.00014205,2]
[423681049,1780300246000,-500.0,0.000143,2]
[423681052,1780300246000,-323.50187327,0.00014305,2]
[423681043,1780300246000,-500.0,0.000143,2]
[423681020,1780300246000,-151.0,0.000143,2]
[423681034,1780300246000,-500.0,0.000143,2]
[423681021,1780300246000,-500.0,0.000143,2]
[423680981,1780300246000,-151.0,0.00014206,2]
[423681018,1780300246000,-706.02,0.00014299,2]
[423680983,1780300246000,-151.0,0.00014206,2]
[423680984,1780300246000,-151.0,0.00014206,2]
[423680989,1780300246000,-150.0,0.00014225,2]
[423680987,1780300246000,-323.50187327,0.00014214,2]
[423680985,1780300246000,-151.0,0.00014206,2]
[423680988,1780300246000,-150.0,0.00014219,2]
[423680986,1780300246000,-150.0,0.00014214,2]
[423680991,1780300246000,-150.0,0.00014237,2]
[423680993,1780300246000,-150.0,0.00014237,2]
[423680995,1780300246000,-323.50187327,0.00014245,2]
[423680990,1780300246000,-323.50187327,0.00014229,2]
[423680992,1780300246000,-150.0,0.00014237,2]
[423680994,1780300246000,-150.0,0.00014237,2]
[423680979,1780300246000,-197921.0714972,0.00014206,2]
[423681002,1780300246000,-150.0,0.00014273,2]
[423680996,1780300246000,-166.66,0.00014247,2]
[423681014,1780300246000,-150.0,0.00014295,2]
[423681012,1780300246000,-150.0,0.00014292,2]
[423681016,1780300246000,-500.0,0.00014299,2]
[423681009,1780300246000,-323.50187327,0.0001429,2]
[423681006,1780300246000,-150.0,0.00014281,2]
[423681017,1780300246000,-1767.48,0.00014299,2]
[423680997,1780300246000,-150.0,0.00014249,2]
[423680998,1780300246000,-150.0,0.00014255,2]
[423680999,1780300246000,-150.0,0.0001426,2]
[423681001,1780300246000,-150.0,0.00014272,2]
[423681000,1780300246000,-323.50187327,0.0001426,2]
[423681003,1780300246000,-323.50187327,0.00014275,2]
[423681093,1780300247000,-150.0,0.00014487,2]
[423681094,1780300247000,-323.50187327,0.00014487,2]
[423681091,1780300247000,-150.0,0.00014479,2]
[423681089,1780300247000,-323.50187327,0.00014472,2]
[423681086,1780300247000,-150.0,0.00014456,2]
[423681088,1780300247000,-150.0,0.00014457,2]
[423681092,1780300247000,-150.0,0.00014487,2]
[423681087,1780300247000,-323.50187327,0.00014456,2]
[423681085,1780300247000,-323.50187327,0.00014441,2]
[423681083,1780300247000,-150.0,0.00014438,2]
[423681095,1780300247000,-14474.46,0.00014497,2]
[423681090,1780300247000,-150.0,0.00014475,2]
[423681098,1780300247000,-323.50187327,0.00014502,2]
[423681102,1780300247000,-461.6,0.00014504,2]
[423681096,1780300247000,-523.47,0.00014497,2]
[423681099,1780300247000,-150.0,0.00014502,2]
[423681100,1780300247000,-9999.99,0.00014504,2]
[423681101,1780300247000,-150.99,0.00014504,2]
[423681103,1780300247000,-299.99,0.00014504,2]
[423681105,1780300247000,-150.0,0.00014511,2]
[423681104,1780300247000,-982.53,0.00014504,2]
[423681106,1780300247000,-323.50187327,0.00014517,2]
[423681110,1780300247000,-150.0,0.00014546,2]
[423681108,1780300247000,-150.0,0.00014532,2]
[423681109,1780300247000,-323.50187327,0.00014532,2]
[423681084,1780300247000,-150.0,0.00014441,2]
[423681097,1780300247000,-150.0,0.00014501,2]
[423681081,1780300247000,-323.50187327,0.00014426,2]
[423681107,1780300247000,-150.0,0.00014525,2]
[423681078,1780300247000,-150.0,0.00014413,2]
[423681053,1780300247000,-150.0,0.00014318,2]
[423681054,1780300247000,-323.50187327,0.0001432,2]
[423681056,1780300247000,-150.0,0.00014328,2]
[423681057,1780300247000,-2130.19204081,0.00014332,2]
[423681055,1780300247000,-150.0,0.00014325,2]
[423681059,1780300247000,-150.0,0.00014341,2]
[423681058,1780300247000,-323.50187327,0.00014335,2]
[423681061,1780300247000,-150.0,0.00014351,2]
[423681060,1780300247000,-150.0,0.00014344,2]
[423681062,1780300247000,-323.50187327,0.00014351,2]
[423681063,1780300247000,-350.0,0.00014353,2]
[423681064,1780300247000,-150.0,0.00014364,2]
[423681068,1780300247000,-150.0,0.00014369,2]
[423681067,1780300247000,-350.0,0.00014366,2]
[423681065,1780300247000,-150.0,0.00014365,2]
[423681066,1780300247000,-323.50187327,0.00014366,2]
[423681070,1780300247000,-166.66,0.00014384,2]
[423681071,1780300247000,-150.0,0.00014387,2]
[423681069,1780300247000,-323.50187327,0.00014381,2]
[423681073,1780300247000,-150.0,0.00014396,2]
[423681072,1780300247000,-150.0,0.00014387,2]
[423681074,1780300247000,-323.50187327,0.00014396,2]
[423681075,1780300247000,-150.0,0.00014401,2]
[423681076,1780300247000,-150.0,0.0001441,2]
[423681077,1780300247000,-323.50187327,0.00014411,2]
[423681079,1780300247000,-150.0,0.00014415,2]
[423681080,1780300247000,-150.0,0.00014424,2]
[423681082,1780300247000,-150.0,0.00014433,2]
[423681111,1780300247000,-323.50187327,0.00014547,2]
[423681137,1780300247000,-150.0,0.00014668,2]
[423681114,1780300247000,-150.0,0.00014558,2]
[423681146,1780300247000,-150.0,0.0001471,2]
[423681145,1780300247000,-150.0,0.00014701,2]
[423681148,1780300247000,-323.50187327,0.00014714,2]
[423681149,1780300247000,-150.0,0.00014722,2]
[423681150,1780300247000,-323.50187327,0.00014729,2]
[423681147,1780300247000,-150.0,0.00014714,2]
[423681151,1780300247000,-150.0,0.0001473,2]
[423681157,1780300247000,-150.0,0.00014759,2]
[423681156,1780300247000,-2000.0,0.00014757,2]
[423681152,1780300247000,-150.0,0.00014733,2]
[423681154,1780300247000,-350.0,0.00014754,2]
[423681153,1780300247000,-323.50187327,0.00014744,2]
[423681144,1780300247000,-323.50187327,0.00014699,2]
[423681155,1780300247000,-150.0,0.00014756,2]
[423681158,1780300247000,-323.50187327,0.00014759,2]
[423681160,1780300247000,-150.0,0.00014767,2]
[423681161,1780300247000,-150.0,0.00014772,2]
[423681162,1780300247000,-2390.28160086,0.00014773,2]
[423681163,1780300247000,-323.50187327,0.00014774,2]
[423681164,1780300247000,-150.0,0.00014779,2]
[423681166,1780300247000,-323.50187327,0.0001479,2]
[423681165,1780300247000,-350.0,0.00014781,2]
[423681169,1780300247000,-150.0,0.00014804,2]
[423681170,1780300247000,-150.0,0.00014805,2]
[423681168,1780300247000,-150.0,0.00014802,2]
[423681112,1780300247000,-150.0,0.00014548,2]
[423681159,1780300247000,-150.0,0.00014766,2]
[423681142,1780300247000,-150.0,0.00014687,2]
[423681167,1780300247000,-150.0,0.00014799,2]
[423681140,1780300247000,-323.50187327,0.00014684,2]
[423681143,1780300247000,-150.0,0.00014694,2]
[423681115,1780300247000,-323.50187327,0.00014562,2]
[423681116,1780300247000,-150.0,0.00014571,2]
[423681117,1780300247000,-150.0,0.00014578,2]
[423681118,1780300247000,-323.50187327,0.00014578,2]
[423681120,1780300247000,-150.0,0.0001459,2]
[423681119,1780300247000,-150.0,0.00014584,2]
[423681122,1780300247000,-150.0,0.00014594,2]
[423681113,1780300247000,-150.0,0.00014548,2]
[423681121,1780300247000,-323.50187327,0.00014593,2]
[423681124,1780300247000,-150.0,0.00014612,2]
[423681126,1780300247000,-150.0,0.00014617,2]
[423681125,1780300247000,-150.0,0.00014612,2]
[423681123,1780300247000,-323.50187327,0.00014608,2]
[423681130,1780300247000,-150.0,0.00014629,2]
[423681141,1780300247000,-150.0,0.00014687,2]
[423681127,1780300247000,-150.0,0.00014621,2]
[423681139,1780300247000,-150.0,0.00014678,2]
[423681138,1780300247000,-323.50187327,0.00014668,2]
[423681136,1780300247000,-150.0,0.00014664,2]
[423681132,1780300247000,-323.50187327,0.00014638,2]
[423681171,1780300247000,-323.50187327,0.00014805,2]
[423681134,1780300247000,-323.50187327,0.00014653,2]
[423681133,1780300247000,-150.0,0.0001464,2]
[423681131,1780300247000,-150.0,0.00014634,2]
[423681129,1780300247000,-323.50187327,0.00014623,2]
[423681128,1780300247000,-150.0,0.00014623,2]
[423681135,1780300247000,-150.0,0.00014657,2]
[423681209,1780300248000,-25000.0,0.00014874,3]
[423681212,1780300248000,-200.0,0.00014879,2]
[423681211,1780300248000,-200.0,0.00014879,2]
[423681207,1780300248000,-323.50187327,0.00014865,2]
[423681199,1780300248000,-706.02,0.00014849,2]
[423681208,1780300248000,-150.0,0.00014871,2]
[423681204,1780300248000,-150.0,0.00014854,2]
[423681205,1780300248000,-25000.0,0.00014856,3]
[423681203,1780300248000,-323.50187327,0.0001485,2]
[423681206,1780300248000,-25000.0,0.00014865,3]
[423681215,1780300248000,-200.0,0.0001488,2]
[423681224,1780300248000,-150.0,0.00014894,2]
[423681210,1780300248000,-150.0,0.00014877,2]
[423681216,1780300248000,-163.0,0.0001488,2]
[423681214,1780300248000,-200.0,0.00014879,2]
[423681213,1780300248000,-200.0,0.00014879,2]
[423681218,1780300248000,-25000.0,0.00014882,3]
[423681219,1780300248000,-25000.0,0.00014882,3]
[423681221,1780300248000,-215.82640677,0.00014889,2]
[423681220,1780300248000,-737.59,0.00014889,2]
[423681223,1780300248000,-25000.0,0.00014891,3]
[423681222,1780300248000,-25000.0,0.00014891,3]
[423681225,1780300248000,-150.0,0.00014895,2]
[423681200,1780300248000,-49756.0513012,0.0001485,2]
[423681217,1780300248000,-323.50187327,0.0001488,2]
[423681197,1780300248000,-500.0,0.00014849,2]
[423681184,1780300248000,-150.0,0.00014844,2]
[423681201,1780300248000,-1832.46203,0.0001485,2]
[423681229,1780300248000,-500.0,0.00014899,2]
[423681172,1780300248000,-150.0,0.0001481,2]
[423681173,1780300248000,-323.50187327,0.0001482,2]
[423681176,1780300248000,-151.0,0.0001483,2]
[423681175,1780300248000,-25000.0,0.0001483,3]
[423681174,1780300248000,-150.0,0.00014825,2]
[423681177,1780300248000,-151.0,0.0001483,2]
[423681179,1780300248000,-737.59,0.00014838,2]
[423681181,1780300248000,-500.0,0.00014838,2]
[423681182,1780300248000,-25000.0,0.00014838,3]
[423681183,1780300248000,-150.0,0.0001484,2]
[423681178,1780300248000,-323.50187327,0.00014835,2]
[423681202,1780300248000,-150.0,0.0001485,2]
[423681180,1780300248000,-382.47010056,0.00014838,2]
[423681187,1780300248000,-500.0,0.00014849,2]
[423681190,1780300248000,-500.0,0.00014849,2]
[423681188,1780300248000,-500.0,0.00014849,2]
[423681186,1780300248000,-150.0,0.00014848,2]
[423681189,1780300248000,-534.02,0.00014849,2]
[423681192,1780300248000,-813.78,0.00014849,2]
[423681191,1780300248000,-5336.71,0.00014849,2]
[423681193,1780300248000,-838.99,0.00014849,2]
[423681194,1780300248000,-1767.48,0.00014849,2]
[423681196,1780300248000,-500.0,0.00014849,2]
[423681195,1780300248000,-500.0,0.00014849,2]
[423681198,1780300248000,-500.0,0.00014849,2]
[423681185,1780300248000,-25000.0,0.00014847,3]
[423681228,1780300248000,-500.0,0.00014899,2]
[423681247,1780300248000,-2519.27914424,0.000149,2]
[423681226,1780300248000,-323.50187327,0.00014895,2]
[423681260,1780300248000,-323.50187327,0.00014956,2]
[423681262,1780300248000,-323.50187327,0.00014971,2]
[423681261,1780300248000,-150.0,0.00014963,2]
[423681263,1780300248000,-500.0,0.0001498,11]
[423681267,1780300248000,-500.0,0.0001498,2]
[423681268,1780300248000,-500.0,0.0001498,2]
[423681270,1780300248000,-534.02,0.0001498,2]
[423681271,1780300248000,-5336.71,0.0001498,2]
[423681272,1780300248000,-5336.71,0.0001498,2]
[423681264,1780300248000,-500.0,0.0001498,2]
[423681227,1780300248000,-150.0,0.00014898,2]
[423681265,1780300248000,-500.0,0.0001498,2]
[423681273,1780300248000,-813.78,0.0001498,2]
[423681269,1780300248000,-534.02,0.0001498,2]
[423681278,1780300248000,-500.0,0.0001498,2]
[423681275,1780300248000,-838.99,0.0001498,2]
[423681276,1780300248000,-838.99,0.0001498,2]
[423681274,1780300248000,-813.78,0.0001498,2]
[423681279,1780300248000,-500.0,0.0001498,2]
[423681277,1780300248000,-500.0,0.0001498,2]
[423681284,1780300248000,-500.0,0.0001498,2]
[423681283,1780300248000,-500.0,0.0001498,2]
[423681282,1780300248000,-500.0,0.0001498,2]
[423681281,1780300248000,-516.79205023,0.0001498,2]
[423681280,1780300248000,-500.0,0.0001498,2]
[423681259,1780300248000,-1832.46204,0.0001495,2]
[423681257,1780300248000,-150.0,0.00014942,2]
[423681266,1780300248000,-500.0,0.0001498,2]
[423681256,1780300248000,-323.50187327,0.00014941,2]
[423681258,1780300248000,-150.0,0.0001495,2]
[423681231,1780300248000,-706.02,0.00014899,2]
[423681232,1780300248000,-500.0,0.00014899,2]
[423681233,1780300248000,-150.0,0.00014899,2]
[423681234,1780300248000,-150.0,0.00014899,2]
[423681236,1780300248000,-1713.0,0.000149,5]
[423681235,1780300248000,-244.86363879,0.00014899,2]
[423681238,1780300248000,-1715.0,0.000149,5]
[423681237,1780300248000,-25000.0,0.000149,3]
[423681240,1780300248000,-151.0,0.000149,2]
[423681241,1780300248000,-16065.72523402,0.000149,2]
[423681239,1780300248000,-78111.39343958,0.000149,2]
[423681230,1780300248000,-1767.48,0.00014899,2]
[423681246,1780300248000,-25000.0,0.000149,3]
[423681242,1780300248000,-238.327963,0.000149,2]
[423681254,1780300248000,-150.0,0.0001494,2]
[423681252,1780300248000,-150.0,0.00014917,2]
[423681249,1780300248000,-323.50187327,0.00014911,2]
[423681253,1780300248000,-323.50187327,0.00014926,2]
[423681255,1780300248000,-150.0,0.00014941,2]
[423681250,1780300248000,-150.0,0.00014913,2]
[423681245,1780300248000,-238.327963,0.000149,2]
[423681244,1780300248000,-238.327963,0.000149,2]
[423681243,1780300248000,-238.327963,0.000149,2]
[423681248,1780300248000,-164.48962134,0.000149,2]
[423681251,1780300248000,-150.0,0.00014915,2]
[423681303,1780300249000,-1767.48,0.00014998,2]
[423681297,1780300249000,-151.0,0.00014997,2]
[423681302,1780300249000,-1767.48,0.00014998,2]
[423681298,1780300249000,-500.0,0.00014998,2]
[423681305,1780300249000,-1767.48,0.00014998,2]
[423681304,1780300249000,-1767.48,0.00014998,2]
[423681308,1780300249000,-706.02,0.00014998,2]
[423681306,1780300249000,-1767.53082404,0.00014998,2]
[423681301,1780300249000,-211.45161432,0.00014998,2]
[423681300,1780300249000,-500.0,0.00014998,2]
[423681299,1780300249000,-500.0,0.00014998,2]
[423681290,1780300249000,-279.3715888,0.00014986,2]
[423681296,1780300249000,-515.81956451,0.0001499,2]
[423681293,1780300249000,-271.09959181,0.00014986,2]
[423681292,1780300249000,-153.92330007,0.00014986,2]
[423681294,1780300249000,-154.9223854,0.00014986,2]
[423681291,1780300249000,-244.08994842,0.00014986,2]
[423681285,1780300249000,-150.56250073,0.00014986,2]
[423681288,1780300249000,-152.60770856,0.00014986,2]
[423681287,1780300249000,-156.323396,0.00014986,2]
[423681289,1780300249000,-185.25931037,0.00014986,2]
[423681286,1780300249000,-151.12134737,0.00014986,2]
[423681310,1780300249000,-706.02,0.00014998,2]
[423681295,1780300249000,-323.50187327,0.00014986,2]
[423681314,1780300249000,-500.0,0.00014999,2]
[423681307,1780300249000,-706.02,0.00014998,2]
[423681309,1780300249000,-706.02,0.00014998,2]
[423681311,1780300249000,-706.14384292,0.00014998,2]
[423681336,1780300249000,-1230.72968212,0.00014999,2]
[423681334,1780300249000,-1908.90390186,0.00014999,2]
[423681331,1780300249000,-5336.71,0.00014999,2]
[423681333,1780300249000,-5336.71,0.00014999,2]
[423681330,1780300249000,-5336.71,0.00014999,2]
[423681329,1780300249000,-5336.71,0.00014999,2]
[423681323,1780300249000,-534.02,0.00014999,2]
[423681324,1780300249000,-534.02,0.00014999,2]
[423681327,1780300249000,-534.02,0.00014999,2]
[423681328,1780300249000,-534.13873113,0.00014999,2]
[423681325,1780300249000,-534.02,0.00014999,2]
[423681332,1780300249000,-5336.71,0.00014999,2]
[423681326,1780300249000,-534.02,0.00014999,2]
[423681322,1780300249000,-534.02,0.00014999,2]
[423681312,1780300249000,-523.13674882,0.00014999,12]
[423681315,1780300249000,-500.0,0.00014999,2]
[423681313,1780300249000,-500.0,0.00014999,2]
[423681321,1780300249000,-534.02,0.00014999,2]
[423681335,1780300249000,-884.47901324,0.00014999,2]
[423681320,1780300249000,-406.17605534,0.00014999,2]
[423681318,1780300249000,-336.78147357,0.00014999,2]
[423681316,1780300249000,-500.0,0.00014999,2]
[423681319,1780300249000,-191.67725867,0.00014999,2]
[423681317,1780300249000,-500.0,0.00014999,2]
[423681338,1780300250000,-1336.68712077,9.399e-05,2]
[423681337,1780300250000,-1124.99917644,0.00011784,2]
[423681353,1780300251000,-813.78,0.00014999,2]
[423681349,1780300251000,-1312.59740278,0.00014999,2]
[423681351,1780300251000,-5336.85500049,0.00014999,2]
[423681352,1780300251000,-813.78,0.00014999,2]
[423681347,1780300251000,-82333.50023956,0.0001238,2]
[423681350,1780300251000,-5336.71,0.00014999,2]
[423681348,1780300251000,-2742.86531824,0.000149,2]
[423681339,1780300251000,-356.65745,9.399e-05,2]
[423681344,1780300251000,-85176.39905022,9.399e-05,2]
[423681346,1780300251000,-840.19160588,0.0001215,2]
[423681343,1780300251000,-129494.90858242,9.399e-05,2]
[423681341,1780300251000,-74442.38587505,9.399e-05,2]
[423681340,1780300251000,-3176.14207497,9.399e-05,2]
[423681355,1780300251000,-813.78,0.00014999,2]
[423681345,1780300251000,-81208.50106312,0.00011784,2]
[423681356,1780300251000,-813.78,0.00014999,2]
[423681342,1780300251000,-2935.30294657,9.399e-05,2]
[423681357,1780300251000,-813.78,0.00014999,2]
[423681354,1780300251000,-813.78,0.00014999,2]
[423681373,1780300251000,-500.0,0.00014999,2]
[423681372,1780300251000,-500.0,0.00014999,2]
[423681368,1780300251000,-500.0,0.00014999,2]
[423681369,1780300251000,-500.0,0.00014999,2]
[423681367,1780300251000,-839.21997454,0.00014999,2]
[423681371,1780300251000,-405.20855202,0.00014999,2]
[423681366,1780300251000,-838.99,0.00014999,2]
[423681370,1780300251000,-500.0,0.00014999,2]
[423681364,1780300251000,-838.99,0.00014999,2]
[423681363,1780300251000,-838.99,0.00014999,2]
[423681362,1780300251000,-838.99,0.00014999,2]
[423681359,1780300251000,-813.87455423,0.00014999,2]
[423681360,1780300251000,-838.99,0.00014999,2]
[423681358,1780300251000,-813.78,0.00014999,2]
[423681361,1780300251000,-838.99,0.00014999,2]
[423681365,1780300251000,-838.99,0.00014999,2]
[423681387,1780300252000,-737.59,0.00014999,2]
[423681386,1780300252000,-737.59,0.00014999,2]
[423681382,1780300252000,-554.38885746,0.00014999,2]
[423681383,1780300252000,-737.59,0.00014999,2]
[423681381,1780300252000,-500.0,0.00014999,2]
[423681378,1780300252000,-500.0,0.00014999,2]
[423681379,1780300252000,-500.0,0.00014999,2]
[423681376,1780300252000,-500.0,0.00014999,2]
[423681377,1780300252000,-505.56076516,0.00014999,2]
[423681374,1780300252000,-500.0,0.00014999,2]
[423681375,1780300252000,-500.0,0.00014999,2]
[423681388,1780300252000,-737.59,0.00014999,2]
[423681380,1780300252000,-500.0,0.00014999,2]
[423681389,1780300252000,-737.59,0.00014999,2]
[423681384,1780300252000,-737.59,0.00014999,2]
[423681390,1780300252000,-737.59,0.00014999,2]
[423681403,1780300252000,-3797.59098501,0.00015,2]
[423681401,1780300252000,-12218.71088171,0.00015,2]
[423681402,1780300252000,-338.29011707,0.00015,2]
[423681399,1780300252000,-300.0,0.00014999,2]
[423681400,1780300252000,-300.0,0.00014999,2]
[423681397,1780300252000,-300.0,0.00014999,2]
[423681398,1780300252000,-781.56714637,0.00014999,2]
[423681396,1780300252000,-300.0,0.00014999,2]
[423681391,1780300252000,-737.82284398,0.00014999,2]
[423681394,1780300252000,-300.0,0.00014999,2]
[423681393,1780300252000,-507.6626679,0.00014999,2]
[423681392,1780300252000,-500.0,0.00014999,2]
[423681395,1780300252000,-300.0,0.00014999,2]
[423681385,1780300252000,-737.59,0.00014999,2]
[423681404,1780300400000,420.0,7e-05,2]
[423681411,1780300498000,-300.40118856,9.375e-05,2]
[423681407,1780300498000,-979.041,9.211e-05,2]
[423681409,1780300498000,-166.90124495,9.352e-05,2]
[423681408,1780300498000,-166.90124495,9.352e-05,2]
[423681410,1780300498000,-166.90124493,9.352e-05,2]
[423681414,1780300498000,-480.0,9.397e-05,2]
[423681413,1780300498000,-2524.12905753,9.389e-05,2]
[423681416,1780300498000,-500.0,9.398e-05,2]
[423681415,1780300498000,-500.0,9.398e-05,2]
[423681412,1780300498000,-250.0,9.375e-05,2]
[423681430,1780300499000,-500.0,9.398e-05,2]
[423681428,1780300499000,-500.0,9.398e-05,2]
[423681426,1780300499000,-500.0,9.398e-05,2]
[423681425,1780300499000,-500.0,9.398e-05,2]
[423681427,1780300499000,-500.0,9.398e-05,2]
[423681424,1780300499000,-500.0,9.398e-05,2]
[423681422,1780300499000,-500.0,9.398e-05,2]
[423681423,1780300499000,-500.0,9.398e-05,2]
[423681420,1780300499000,-500.0,9.398e-05,2]
[423681419,1780300499000,-500.0,9.398e-05,2]
[423681417,1780300499000,-500.0,9.398e-05,2]
[423681418,1780300499000,-532.52227407,9.398e-05,2]
[423681429,1780300499000,-500.0,9.398e-05,2]
[423681421,1780300499000,-500.0,9.398e-05,2]
[423681432,1780300499000,-500.0,9.398e-05,2]
[423681436,1780300499000,-500.0,9.398e-05,2]
[423681433,1780300499000,-500.0,9.398e-05,2]
[423681446,1780300499000,-500.0,9.398e-05,2]
[423681445,1780300499000,-500.0,9.398e-05,2]
[423681444,1780300499000,-500.0,9.398e-05,2]
[423681443,1780300499000,-265.72916561,9.398e-05,2]
[423681442,1780300499000,-614.97596544,9.398e-05,2]
[423681431,1780300499000,-500.0,9.398e-05,2]
[423681441,1780300499000,-500.0,9.398e-05,2]
[423681439,1780300499000,-500.0,9.398e-05,2]
[423681438,1780300499000,-500.0,9.398e-05,2]
[423681437,1780300499000,-500.0,9.398e-05,2]
[423681447,1780300499000,-58.49761396,9.398e-05,2]
[423681435,1780300499000,-500.0,9.398e-05,2]
[423681434,1780300499000,-500.0,9.398e-05,2]
[423681440,1780300499000,-500.0,9.398e-05,2]
[423681451,1780300754000,274.8,0.00030137,120]
[423681452,1780300800000,499.99,0.00030137,120]
[423681456,1780300943000,166.07,8.722e-05,2]
[423681457,1780300943000,166.07,8.952e-05,2]
[423681458,1780300943000,300.0,0.00030107,120]
[423681459,1780301025000,187.13,8.854e-05,2]
[423681460,1780301099000,-617.88,9.024e-05,2]
[423681461,1780301099000,-166.07,9.181e-05,2]
[423681462,1780301099000,-2500.0,9.299e-05,2]
[423681465,1780301100000,-196.4858024,9.347e-05,2]
[423681463,1780301100000,-250.0,9.323e-05,2]
[423681464,1780301100000,-187.13,9.346e-05,2]
[423681466,1780301100000,-150.0,9.391e-05,2]
[423681473,1780301100000,-312.2288992,9.398e-05,2]
[423681469,1780301100000,-174.0,9.397e-05,2]
[423681468,1780301100000,-1200.0,9.397e-05,2]
[423681467,1780301100000,-300.0,9.396e-05,2]
[423681472,1780301100000,-186.01041593,9.398e-05,2]
[423681470,1780301100000,-300.0,9.397e-05,2]
[423681471,1780301100000,-150.0,9.397e-05,2]
[423681474,1780301100000,-500.0,9.398e-05,2]
[423681484,1780301100000,-422.76559185,9.398e-05,2]
[423681477,1780301100000,-500.0,9.398e-05,2]
[423681486,1780301100000,-500.0,9.398e-05,2]
[423681488,1780301100000,-783.233,9.398e-05,2]
[423681475,1780301100000,-547.3711866,9.398e-05,2]
[423681485,1780301100000,-500.0,9.398e-05,2]
[423681483,1780301100000,-500.0,9.398e-05,2]
[423681487,1780301100000,-500.0,9.398e-05,2]
[423681478,1780301100000,-500.0,9.398e-05,2]
[423681480,1780301100000,-500.0,9.398e-05,2]
[423681479,1780301100000,-308.84974398,9.398e-05,2]
[423681481,1780301100000,-500.0,9.398e-05,2]
[423681476,1780301100000,-178.01724503,9.398e-05,2]
[423681482,1780301100000,-500.0,9.398e-05,2]
[423681489,1780301101000,1200.0,9.396e-05,2]
[423681490,1780301123000,-90069.95811501,9.399e-05,2]
[423681493,1780301312000,200.0,8.798e-05,2]
[423681522,1780301341000,2000.0,0.00030136,120]
[423681535,1780301432000,-620.2125775,9.02e-05,2]
[423681534,1780301432000,-317.1374225,9.02e-05,2]
[423681536,1780301432000,-218.33,9.105e-05,2]
[423681538,1780301432000,-812.72909944,9.297e-05,2]
[423681537,1780301432000,-102.99867289,9.297e-05,2]
[423681552,1780301440000,-474.61207152,9.298e-05,2]
[423681551,1780301440000,-500.0,9.298e-05,2]
[423681550,1780301440000,-284.27222767,9.297e-05,2]
[423681554,1780301440000,-218.56022944,9.298e-05,2]
[423681553,1780301440000,-495.9359143,9.298e-05,2]
[423681555,1780301440000,-423.20552711,9.298e-05,2]
[423681556,1780301440000,-150.0,9.298e-05,2]
[423681558,1780301440000,-57241.12255234,9.299e-05,2]
[423681559,1780301440000,-917.39276177,9.299e-05,2]
[423681557,1780301440000,-2500.0,9.299e-05,2]
[423681595,1780301441000,-193.0,0.00010339,2]
[423681583,1780301441000,-1680.0,0.00010227,2]
[423681587,1780301441000,-218.33,0.00010243,2]
[423681585,1780301441000,-255.0,0.00010228,2]
[423681592,1780301441000,-500.0,0.00010333,2]